Cogmind - Beta 9.6 @@@ ROGUE MODE // 2020.08.25 @ 15:45:15 // Winter2019/RPGLIKE Player: Hermelin Result: Destroyed by B-86 Titan with Hardcell Cannon Performance ------------- Evolutions (6) 3000 Regions Visited (22) 4400 Robots Destroyed (260) 1300 Value Destroyed (12623) 12623 Prototype IDs (55) 1100 Alien Tech Used (0) 0 Bonus (9420) 9420 TOTAL SCORE: 31843 Bonus ------- High Alert Combat Kills 3200 Follower Combat Kills 356 Entered Garrisons 1600 Used RIF Installer 4000 Aligned with FarCom 300 Friendly Fire -36 Cogmind --------- Core Integrity 0/1300 Matter 300/300 Energy 520/520 System Corruption 1% Temperature Cool (9) Movement Flying (28) Location -4/Extension Parts ------- > --- POWER (2) -------- Cooled Deuterium Engine Cooled Deuterium Engine > --- PROPULSION (5) --- Improved VTOL Module Improved VTOL Module Biomechanical Wings Nuclear Pulse Array > --- UTILITY (11) ----- Experimental Signal Interpreter Advanced Terrain Scanner Improved Melee Analysis Suite Experimental Melee Analysis Suite Improved Core Analyzer Improved Medium Armor Plating Layered Light Armor Plating Relay Coupler [Swarmer] (84) Relay Coupler [Grunt] (64) Relay Coupler [Sentry] (48) System Backup Module > --- WEAPON (5) ------- Greatsword Power Sword > --- INVENTORY (5) ---- Advanced Shield Generator Relay Coupler [ARC] (18) Relay Coupler [Brawler] (52) Guided Plasma Cannon Improved Plasma Cutter Peak State ------------ > --- POWER ------------ Cooled Deuterium Engine Cooled Deuterium Engine > --- PROPULSION ------- Improved VTOL Module Improved VTOL Module Biomechanical Wings Nuclear Pulse Array > --- UTILITY ---------- Experimental Signal Interpreter Advanced Terrain Scanner Improved Melee Analysis Suite Experimental Melee Analysis Suite Improved Core Analyzer Layered Light Armor Plating Advanced Shield Generator Relay Coupler [Swarmer] Relay Coupler [Grunt] Relay Coupler [Sentry] System Backup Module > --- WEAPON ----------- Greatsword Greatsword Power Sword > --- INVENTORY -------- Protomatter Relay Coupler [ARC] Relay Coupler [Brawler] Guided Plasma Cannon Improved Plasma Cutter [Rating: 110] Favorites ----------- Power Cooled Deuterium Engine Engine Cooled Deuterium Engine Power Core Enhanced Nuclear Core Propulsion Improved VTOL Module Leg Aluminum Leg Hover Unit Hover Unit Flight Unit Improved VTOL Module Utility Improved Melee Analysis Suite Device Advanced Terrain Scanner Storage Compact Battery Processor Improved Melee Analysis Suite Hackware Relay Coupler [Swarmer] Protection Improved Medium Armor Plating Weapon Greatsword Energy Gun Heavy Particle Gun Energy Cannon Advanced Beam Cannon Ballistic Gun Assault Rifle Launcher Mini Grenade Launcher Special Weapon Plasma Cutter Impact Weapon Power Maul Slashing Weapon Greatsword Build | -11 -10 -10 -10 -9 -8 -8 -8 -8 -7 -7 -6 -6 -6 -6 -5 -5 -5 -5 -4 -4 -4 -4 ------- Run | Scr Mat Min Exi Min Mat Gar Mat Gar Fac Gar Fac Gar Fac Gar Fac Gar Fac Gar Fac Gar Fac Ext Slots Evolved 19 | 2 . . . 2 3 . 1 3 3 . 1 1 . . 1 . . 1 . 1 . . Power 1 | . . . . . . . . 1 . . . . . . . . . . . . . . Propulsion 4 | . . . . 1 2 . . . 1 . . . . . . . . . . . . . Utility 10 | 2 . . . 1 1 . 1 1 . . 1 . . . 1 . . 1 . 1 . . Weapon 4 | . . . . . . . . 1 2 . . 1 . . . . . . . . . . Parts Attached 115 | 6 6 . 1 8 14 . 5 3 27 1 . 8 1 2 10 3 3 4 3 6 2 2 Power 12 | 2 . . . 1 1 . . . 6 . . 1 1 . . . . . . . . . Engine 8 | 2 . . . 1 1 . . . 2 . . 1 1 . . . . . . . . . Core 4 | . . . . . . . . . 4 . . . . . . . . . . . . . Reactor . | . . . . . . . . . . . . . . . . . . . . . . . Propulsion 20 | 1 1 . . 4 5 . 2 . 1 . . 1 . . 4 . . . 1 . . . Treads . | . . . . . . . . . . . . . . . . . . . . . . . Leg 1 | 1 . . . . . . . . . . . . . . . . . . . . . . Wheel . | . . . . . . . . . . . . . . . . . . . . . . . Hover 2 | . 1 . . 1 . . . . . . . . . . . . . . . . . . Flight 17 | . . . . 3 5 . 2 . 1 . . 1 . . 4 . . . 1 . . . Utility 54 | 2 2 . . 3 7 . 1 2 9 1 . 4 . 2 6 1 3 2 . 5 2 2 Device 19 | 1 1 . . 1 4 . . . 4 1 . . . 1 3 . 1 . . 1 1 . Storage 4 | 1 . . . . . . 1 . . . . . . . 1 . 1 . . . . . Processor 10 | . 1 . . 2 1 . . . 2 . . . . 1 . 1 1 . . . 1 . Hackware 10 | . . . . . . . . 2 . . . 2 . . 2 . . 1 . 3 . . Protection 11 | . . . . . 2 . . . 3 . . 2 . . . . . 1 . 1 . 2 Artifact . | . . . . . . . . . . . . . . . . . . . . . . . Weapon 29 | 1 3 . 1 . 1 . 2 1 11 . . 2 . . . 2 . 2 2 1 . . Energy Gun 2 | . . . . . 1 . . . 1 . . . . . . . . . . . . . Energy Cannon 5 | . . . 1 . . . 2 . 2 . . . . . . . . . . . . . Ballistic Gun 1 | 1 . . . . . . . . . . . . . . . . . . . . . . Ballistic Cannon . | . . . . . . . . . . . . . . . . . . . . . . . Launcher 1 | . 1 . . . . . . . . . . . . . . . . . . . . . Special Weapon 5 | . 2 . . . . . . 1 . . . . . . . 1 . 1 . . . . Impact Weapon 2 | . . . . . . . . . 2 . . . . . . . . . . . . . Slashing Weapon 13 | . . . . . . . . . 6 . . 2 . . . 1 . 1 2 1 . . Piercing Weapon . | . . . . . . . . . . . . . . . . . . . . . . . Special Melee Weapon . | . . . . . . . . . . . . . . . . . . . . . . . Unidentified Prototypes 11 | . . . . . 2 . 1 . 3 . . . . . 2 . 2 . . . 1 . Parts Lost 4 | . . . . . . . . 1 1 . . . . . . . . . . 1 . 1 Power . | . . . . . . . . . . . . . . . . . . . . . . . Propulsion . | . . . . . . . . . . . . . . . . . . . . . . . Utility 3 | . . . . . . . . 1 1 . . . . . . . . . . 1 . . Weapon 1 | . . . . . . . . . . . . . . . . . . . . . . 1 Highest Loss Streak 1 | . . . . . . . . 1 1 . . . . . . . . . . 1 . 1 Average Slot Usage (%) 94 | . 94 100 100 90 99 100 99 98 93 89 . 92 95 95 94 95 95 95 90 85 86 85 Engine 9 | . 16 16 16 12 9 9 8 7 2 11 . 9 10 10 9 9 9 9 9 8 8 8 Core 1 | . . . . . . . . . 8 . . . . . . . . . . . . . Hover 1 | . 8 16 16 6 . . . . . . . . . . . . . . . . . . Flight 23 | . . . . 18 38 36 35 31 29 27 . 24 25 25 23 23 23 22 22 17 17 17 Device 16 | . 30 33 33 26 19 18 17 15 14 12 . 15 15 15 14 13 9 9 9 10 13 9 Storage 1 | . 8 . . . . . . 7 4 . . . . . . . . . . . . . Processor 13 | . 4 16 16 14 11 9 8 7 9 16 . 15 15 15 14 14 21 18 18 17 17 17 Hackware 4 | . . . . . . . . 1 3 . . 4 5 5 8 9 9 12 13 16 13 13 Protection 6 | . . . . . 10 18 17 14 8 5 . 4 5 5 4 4 1 3 4 1 4 6 Energy Cannon 3 | . . . 14 12 7 . 8 7 2 . . . . . . . . . . . . . Special Weapon 1 | . 7 16 1 . . . . 1 1 . . . . . . 1 . . . . . . Slashing Weapon 8 | . . . . . . . . . 4 16 . 18 20 20 19 16 19 17 13 13 13 13 Naked Turns . | . . . . . . . . . . . . . . . . . . . . . . . Heaviest Build 49 | 8 9 6 15 21 28 28 30 31 40 41 41 45 45 46 48 46 45 49 49 48 46 48 Greatest Support 55 | 10 10 6 6 17 33 33 35 35 41 41 41 46 46 46 50 50 50 50 55 55 55 55 Greatest Overweight (x) 2 | . 1 . 2 2 . . . . . . . . . . . . . . . . . 2 Average Overweight (x) . | . . . 1 . . . . . . . . . . . . . . . . . . . Largest Inventory Capacity 5 | 2 2 2 2 2 2 2 3 3 4 4 4 4 4 4 4 4 4 5 5 5 5 5 Average Capacity 3 | 1 2 2 2 2 2 2 2 3 3 4 4 4 4 4 4 4 4 4 5 5 5 5 Most Carried 5 | 2 2 2 2 2 2 2 2 3 4 4 4 4 4 4 4 4 4 5 5 5 5 5 Average Carried 3 | 1 1 2 1 1 1 2 1 2 3 4 4 3 4 4 3 3 4 4 5 4 4 4 Final Capacity 5 | 2 2 2 2 2 2 2 3 3 4 4 4 4 4 4 4 4 4 5 5 5 5 5 Final Carried 5 | 2 2 2 2 2 2 2 2 3 4 4 4 4 4 4 4 4 4 5 5 5 4 5 Class Distribution -------------------- 55% | Scout 23% | Hacker-Scout 13% | Mutant 3% | Scavenger-Scout Dominant Class ---------------- Mutant | -10/Materials Mutant | -10/Mines Mutant | -10/Exiles Scavenger-Mutant | -9/Mines Scout | -8/Materials Scout | -8/Garrison Scout | -8/Materials Scout | -8/Garrison Scout | -7/Factory Scout | -7/Garrison Scout | -6/Factory Scout | -6/Garrison Scout | -6/Factory Scout | -6/Garrison Scout | -5/Factory Hacker-Scout | -5/Garrison Hacker-Scout | -5/Factory Hacker-Scout | -5/Garrison Hacker-Scout | -4/Factory Hacker-Scout | -4/Garrison Scout | -4/Factory Commander-Scout | -4/Extension Resources | -11 -10 -10 -10 -9 -8 -8 -8 -8 -7 -7 -6 -6 -6 -6 -5 -5 -5 -5 -4 -4 -4 -4 ----------- Run | Scr Mat Min Exi Min Mat Gar Mat Gar Fac Gar Fac Gar Fac Gar Fac Gar Fac Gar Fac Gar Fac Ext Matter Collected 1584 | 365 36 56 . 170 140 . 40 35 235 40 . 80 10 20 100 10 48 32 30 92 20 25 Remotely 202 | . 36 56 . 110 . . . . . . . . . . . . . . . . . . Salvage Created 11130 | 149 36 . . 154 621 109 659 757 1442 848 . 1334 118 698 302 996 161 888 80 1417 37 324 Parts 552 | 11 7 . . 16 38 7 33 49 67 51 . 54 . 39 12 54 3 45 1 44 2 19 Haulers Intercepted 14 | . . . . . 3 . 3 . 3 . . . 1 . 2 . 1 . 1 . . . Recyclers Shooed 2 | 1 . . . . . . . . . . . . . . . . 1 . . . . . Parts Field Recycled . | . . . . . . . . . . . . . . . . . . . . . . . Retrieved Matter . | . . . . . . . . . . . . . . . . . . . . . . . Parts Self-Destructed . | . . . . . . . . . . . . . . . . . . . . . . . Prevented . | . . . . . . . . . . . . . . . . . . . . . . . Kills | -11 -10 -10 -10 -9 -8 -8 -8 -8 -7 -7 -6 -6 -6 -6 -5 -5 -5 -5 -4 -4 -4 -4 ------- Run | Scr Mat Min Exi Min Mat Gar Mat Gar Fac Gar Fac Gar Fac Gar Fac Gar Fac Gar Fac Gar Fac Ext Combat Hostiles Destroyed 216 | . 3 . . 7 13 2 11 21 21 24 . 25 . 18 5 20 1 23 . 18 . 4 Melee 151 | . . . . . . . . . 13 24 . 25 . 18 5 20 1 23 . 18 . 4 Guns 5 | . . . . . 3 2 . . . . . . . . . . . . . . . . Cannons 54 | . . . . 7 9 . 9 21 8 . . . . . . . . . . . . . AOE 5 | . 3 . . . . . 2 . . . . . . . . . . . . . . . Classes Destroyed 16 | 3 2 . . 2 3 1 . 1 1 . . 2 . . . . . . . 1 . . Worker 8 | 2 . . . . . . 1 . 3 . . . . . 2 . . . . . . . Builder 3 | . . . . 1 . . . . 2 . . . . . . . . . . . . . Tunneler 3 | 1 . . . . . . . . . . . . . . 1 . 1 . . . . . Hauler 14 | . . . . . 3 . 3 . 3 . . . 1 . 2 . 1 . 1 . . . Recycler 2 | 1 . . . . 1 . . . . . . . . . . . . . . . . . Operator 4 | . . . . . 1 . 1 . . . . . 1 . . . . . . . . 1 Watcher 10 | . 1 . . . 1 1 1 . . 1 . . . . . 1 1 . . . 1 2 Swarmer 58 | . 3 . . 6 3 . . 3 . 3 . 7 . 4 3 7 . 19 . . . . Saboteur 1 | . . . . . . . . . . . . 1 . . . . . . . . . . Grunt 83 | . . . . 1 5 . 6 11 10 15 . 7 . 6 . 9 . 2 . 10 . 1 Brawler 6 | . . . . . . . . 1 . 2 . 2 . . . . . . . 1 . . Duelist 2 | . . . . . . . . . . . . 1 . . . . . . . 1 . . Sentry 46 | . . . . . 5 1 4 6 6 3 . 5 . 7 1 . 1 2 . 2 . 3 Demolisher 1 | . . . . . . . . . . . . . . . . . . . . 1 . . Hunter 12 | . . . . . . 1 1 . 3 1 . 2 . . . 4 . . . . . . Programmer 7 | . . . . . . . . . 2 . . . . 1 1 . . . . 3 . . Best Kill Streak 13 | 2 3 . . 5 4 1 5 4 6 8 . 7 1 5 4 13 2 9 1 3 1 2 Combat Bots Only 13 | . 3 . . 4 3 1 5 4 4 8 . 7 . 5 4 13 1 9 . 3 . 2 Max Kills in Single Turn 2 | 1 2 . . 1 1 1 2 1 1 1 . 1 1 1 1 1 1 1 1 1 1 1 Gunslinging . | . . . . . . . . . . . . . . . . . . . . . . . Exploded 2 | . 2 . . . . . 2 . . . . . . . . . . . . . . . Melee 1 | . . . . . . . . . 1 1 . 1 . 1 1 1 1 1 . 1 . 1 Uniques/NPCs Destroyed . | . . . . . . . . . . . . . . . . . . . . . . . Combat | -11 -10 -10 -10 -9 -8 -8 -8 -8 -7 -7 -6 -6 -6 -6 -5 -5 -5 -5 -4 -4 -4 -4 -------- Run | Scr Mat Min Exi Min Mat Gar Mat Gar Fac Gar Fac Gar Fac Gar Fac Gar Fac Gar Fac Gar Fac Ext Damage Taken 12710 | . 178 . . 108 368 245 520 1347 1527 922 . 1127 . 845 664 651 . 717 . 2132 . 1359 Core 8800 | . 156 . . 91 261 132 259 757 1042 654 . 792 . 623 494 474 . 511 . 1629 . 925 Absorbed by Shields 3237 | . . . . . . . . 17 249 355 . 424 . 329 246 237 . 268 . 945 . 167 Redirected to Core 7444 | . 67 . . 45 187 132 228 699 905 554 . 736 . 474 443 379 . 460 . 1291 . 844 Core Remaining (%) 96 | 100 . . . 100 . . . 100 . 91 . . . 86 . . . 100 . . . . Volleys Fired 388 | 21 7 . . 12 72 19 66 115 45 . . . . . . 11 . 20 . . . . Largest 2 | 1 1 . . 1 1 1 1 2 1 . . . . . . 1 . 1 . . . . Hottest 120 | 20 30 . . 120 120 55 68 88 68 . . . . . . 20 . 20 . . . . Shots Fired 391 | 21 7 . . 12 71 19 66 119 45 . . . . . . 11 . 20 . . . . Gun 70 | 21 2 . . . 28 19 . . . . . . . . . . . . . . . . Cannon 281 | . . . . 12 43 . 66 115 45 . . . . . . . . . . . . . Launcher 3 | . 3 . . . . . . . . . . . . . . . . . . . . . Special 37 | . 2 . . . . . . 4 . . . . . . . 11 . 20 . . . . Kinetic 23 | 21 2 . . . . . . . . . . . . . . . . . . . . . Thermal 365 | . 2 . . 12 71 19 66 119 45 . . . . . . 11 . 20 . . . . Explosive 3 | . 3 . . . . . . . . . . . . . . . . . . . . . Electromagnetic . | . . . . . . . . . . . . . . . . . . . . . . . Robot Hit Streak 29 | 6 1 . . 8 29 5 9 13 18 . . . . . . 7 . 10 . . . . Robot Miss Streak 3 | 1 3 . . . 2 2 2 2 2 . . . . . . 2 . 1 . . . . Penetration Max . | . . . . . . . . . . . . . . . . . . . . . . . Secondary Targets . | . . . . . . . . . . . . . . . . . . . . . . . Shots Hit Robots 783 | 15 2 . . 8 35 14 52 83 87 55 . 89 7 47 31 51 8 69 1 87 1 41 Core Hits 373 | 5 5 . . 9 23 7 24 36 39 30 . 40 2 23 8 33 3 33 1 38 1 13 Critical Hits 70 | . . . . . . . 12 17 10 2 . 7 . 1 4 4 . 7 . 2 . 4 Critical Kills 25 | . . . . . . . 7 1 4 1 . 3 . . 1 3 . 3 . 1 . 1 Critical Parts Destroyed 39 | . . . . . . . 4 14 6 1 . 4 . 1 3 1 . 3 . 1 . 1 Melee Attacks 661 | . . . . . . . . . 61 72 . 112 9 79 35 59 11 77 1 101 1 43 Impact 6 | . . . . . . . . . 6 . . . . . . . . . . . . . Slashing 655 | . . . . . . . . . 55 72 . 112 9 79 35 59 11 77 1 101 1 43 Piercing . | . . . . . . . . . . . . . . . . . . . . . . . Sneak Attacks 44 | . . . . . . . . . 8 3 . 5 3 . 9 1 6 . 1 5 . 3 Combat Hostiles 17 | . . . . . . . . . 1 2 . 5 . . . 1 . . . 5 . 3 Follow-up Attacks 131 | . . . . . . . . . 2 13 . 29 3 13 12 10 2 13 . 20 . 14 Damage Inflicted 39318 | 200 204 . . 425 1802 253 1361 1784 4240 3162 . 5346 627 2506 2562 2490 1095 2996 190 5209 71 2795 Guns 784 | 200 15 . . . 316 253 . . . . . . . . . . . . . . . . Cannons 5605 | . . . . 425 1486 . 1130 1760 804 . . . . . . . . . . . . . Explosions 420 | . 189 . . . . . 231 . . . . . . . . . . . . . . . Melee 32019 | . . . . . . . . . 3436 3162 . 5346 627 2506 2562 2340 1095 2680 190 5209 71 2795 Ramming . | . . . . . . . . . . . . . . . . . . . . . . . Kinetic 215 | 200 15 . . . . . . . . . . . . . . . . . . . . . Thermal 6664 | . . . . 425 1802 253 1130 1784 804 . . . . . . 150 . 316 . . . . Explosive 420 | . 189 . . . . . 231 . . . . . . . . . . . . . . . Electromagnetic . | . . . . . . . . . . . . . . . . . . . . . . . Impact 299 | . . . . . . . . . 299 . . . . . . . . . . . . . Slashing 31720 | . . . . . . . . . 3137 3162 . 5346 627 2506 2562 2340 1095 2680 190 5209 71 2795 Piercing . | . . . . . . . . . . . . . . . . . . . . . . . Highest Corruption 3 | . . . . . . . . . . . . . . . 2 1 . . . 3 3 3 Average Corruption 1 | . . . . . . . . . . . . . . . 1 1 . . . 2 2 1 Corruption Purged 6 | . . . . . . . . . . . . . . . 1 1 . . . 2 . 2 Effects 23 | . . . . . . . . . . . . . . . 3 6 . . . 8 2 4 Message Errors 8 | . . . . . . . . . . . . . . . 3 2 . . . 1 . 2 Matter Fused 4 | . . . . . . . . . . . . . . . . . . . . 3 1 . Heat Flow Errors 2 | . . . . . . . . . . . . . . . . . . . . 1 1 . Energy Discharges 3 | . . . . . . . . . . . . . . . . 2 . . . . . 1 Data Loss (minor) 4 | . . . . . . . . . . . . . . . . 2 . . . 1 . 1 Targeting Errors 2 | . . . . . . . . . . . . . . . . . . . . 2 . . Overload Shots . | . . . . . . . . . . . . . . . . . . . . . . . Overflow Damage 3257 | . 3 . . 35 43 . 13 6 580 260 . 397 98 99 548 62 315 189 . 400 . 209 Projectiles 129 | . . . . 35 43 . 13 6 32 . . . . . . . . . . . . . Explosions 3 | . 3 . . . . . . . . . . . . . . . . . . . . . Melee 3125 | . . . . . . . . . 548 260 . 397 98 99 548 62 315 189 . 400 . 209 Knockbacks 1 | . . . . . . . . . 1 . . . . . . . . . . . . . Impact 1 | . . . . . . . . . 1 . . . . . . . . . . . . . Kinetic . | . . . . . . . . . . . . . . . . . . . . . . . Secondary . | . . . . . . . . . . . . . . . . . . . . . . . Self-Inflicted Damage 182 | . 95 . . . . . 87 . . . . . . . . . . . . . . . Shots 3 | . 2 . . . . . 1 . . . . . . . . . . . . . . . Rammed . | . . . . . . . . . . . . . . . . . . . . . . . Targets Rammed . | . . . . . . . . . . . . . . . . . . . . . . . Kicked . | . . . . . . . . . . . . . . . . . . . . . . . Crushed . | . . . . . . . . . . . . . . . . . . . . . . . Highest Temperature 326 | . . . . 196 326 . 8 88 195 . . . . . . . . . . 86 220 . Average Temperature 76 | . . . . 108 102 . 4 24 90 . . . . . . . . . . 64 117 . Received Heat Transfer 2958 | . . . . 15 153 9 171 624 473 286 . 210 . 274 129 66 . 108 . 233 . 207 Siege Activations . | . . . . . . . . . . . . . . . . . . . . . . . Robots Corrupted . | . . . . . . . . . . . . . . . . . . . . . . . Combat Hostiles . | . . . . . . . . . . . . . . . . . . . . . . . Parts Fried 2 | . . . . . . . . . 2 . . . . . . . . . . . . . Impact Corruptions 2 | . . . . . . . . . 2 . . . . . . . . . . . . . Robots Melted 2 | . . . . . 2 . . . . . . . . . . . . . . . . . Combat Hostiles 1 | . . . . . 1 . . . . . . . . . . . . . . . . . Parts Melted 29 | . . . . 3 11 1 1 7 6 . . . . . . . . . . . . . Heat Transferred 13052 | . . . . 960 3952 518 1998 3182 1406 . . . . . . 333 . 703 . . . . Parts Sabotaged 5 | . . . . . . . . . . . . 5 . . . . . . . . . . Parts Stolen . | . . . . . . . . . . . . . . . . . . . . . . . Parts Stripped . | . . . . . . . . . . . . . . . . . . . . . . . Power Chain Reactions . | . . . . . . . . . . . . . . . . . . . . . . . Missiles Intercepted . | . . . . . . . . . . . . . . . . . . . . . . . Alert | -11 -10 -10 -10 -9 -8 -8 -8 -8 -7 -7 -6 -6 -6 -6 -5 -5 -5 -5 -4 -4 -4 -4 ------- Run | Scr Mat Min Exi Min Mat Gar Mat Gar Fac Gar Fac Gar Fac Gar Fac Gar Fac Gar Fac Gar Fac Ext Peak Influence 1395 | 20 158 61 . 180 376 309 360 902 1245 1395 732 1242 692 994 713 1024 591 965 539 939 538 340 Average Influence 560 | 7 48 61 . 99 246 290 216 516 661 1159 732 823 673 738 636 804 545 731 520 657 526 196 Maximum Alert Level 4 | . . . . . 1 1 1 3 4 4 3 4 2 3 3 3 2 3 2 3 2 1 Low Security (%) 18 | 100 100 100 . 100 34 . 50 12 . . . . . . . . . . . . . 61 Level 1 14 | . . . . . 65 100 49 26 . . . . . . . . . . . 2 . 38 Level 2 34 | . . . . . . . . 35 70 . . 42 100 48 76 32 100 28 100 58 100 . Level 3 26 | . . . . . . . . 25 21 36 100 41 . 51 23 67 . 71 . 39 . . Level 4 6 | . . . . . . . . . 7 63 . 15 . . . . . . . . . . Level 5 . | . . . . . . . . . . . . . . . . . . . . . . . High Security . | . . . . . . . . . . . . . . . . . . . . . . . Max Security . | . . . . . . . . . . . . . . . . . . . . . . . Squads Dispatched 23 | . 1 . . 1 . . 3 . 10 . . . 1 . 3 . 1 . . . 1 2 Investigation 12 | . . . . 1 . . 2 . 5 . . . . . 1 . 1 . . . 1 1 Extermination 2 | . . . . . . . . . 2 . . . . . . . . . . . . . Reinforcement 7 | . 1 . . . . . 1 . 2 . . . 1 . 1 . . . . . . 1 Assault 2 | . . . . . . . . . 1 . . . . . 1 . . . . . . . Garrison . | . . . . . . . . . . . . . . . . . . . . . . . Intercept . | . . . . . . . . . . . . . . . . . . . . . . . Construction Impeded 1 | . . . . . . . 1 . . . . . . . . . . . . . . . Haulers Reinforced 3 | . . . . . . . . . 2 . . . . . 1 . . . . . . . Alert ID Control Effect 3 | . . . . . . . . . . . . . . . . . . . . 1 . 2 Stealth | -11 -10 -10 -10 -9 -8 -8 -8 -8 -7 -7 -6 -6 -6 -6 -5 -5 -5 -5 -4 -4 -4 -4 --------- Run | Scr Mat Min Exi Min Mat Gar Mat Gar Fac Gar Fac Gar Fac Gar Fac Gar Fac Gar Fac Gar Fac Ext Distress Signals 8 | . 1 . . . 3 . 3 . . . . . . . . . 1 . . . . . Communications Jammed . | . . . . . . . . . . . . . . . . . . . . . . . Distress Signals . | . . . . . . . . . . . . . . . . . . . . . . . Times Spotted 334 | . 5 . . 9 25 3 31 25 30 30 . 40 1 20 12 21 3 30 1 33 1 14 Peak Tracking Total 14 | . 4 . . 4 5 1 11 7 5 6 . 8 . 5 7 14 5 5 1 8 . 7 Tactical Retreats 37 | . . . . . 2 . 1 4 1 4 . 8 . 2 3 2 1 5 . 4 . . Traps | -11 -10 -10 -10 -9 -8 -8 -8 -8 -7 -7 -6 -6 -6 -6 -5 -5 -5 -5 -4 -4 -4 -4 ------- Run | Scr Mat Min Exi Min Mat Gar Mat Gar Fac Gar Fac Gar Fac Gar Fac Gar Fac Gar Fac Gar Fac Ext Traps Triggered 35 | . . . . . . 3 . 6 2 6 . 2 . 2 1 2 . 5 . 6 . . Indirectly . | . . . . . . . . . . . . . . . . . . . . . . . Trap Hack Attempts . | . . . . . . . . . . . . . . . . . . . . . . . Triggered . | . . . . . . . . . . . . . . . . . . . . . . . Disarmed . | . . . . . . . . . . . . . . . . . . . . . . . Reprogrammed . | . . . . . . . . . . . . . . . . . . . . . . . Reused . | . . . . . . . . . . . . . . . . . . . . . . . Traps Extracted . | . . . . . . . . . . . . . . . . . . . . . . . Installed . | . . . . . . . . . . . . . . . . . . . . . . . Triggered . | . . . . . . . . . . . . . . . . . . . . . . . Machines | -11 -10 -10 -10 -9 -8 -8 -8 -8 -7 -7 -6 -6 -6 -6 -5 -5 -5 -5 -4 -4 -4 -4 ---------- Run | Scr Mat Min Exi Min Mat Gar Mat Gar Fac Gar Fac Gar Fac Gar Fac Gar Fac Gar Fac Gar Fac Ext Machines Disabled 20 | . 2 . . . 1 . 3 6 . . . 3 . 1 . 1 . 1 . 2 . . Max in Single Turn 3 | . 1 . . . 1 . 3 2 . . . 1 . 1 . 1 . 1 . 1 . . Garrison Relay 10 | . . . . . . . . 2 . . . 3 . 1 . 1 . 1 . 2 . . Phase Generator 1 | . . . . . . . . 1 . . . . . . . . . . . . . . Machines Sabotaged . | . . . . . . . . . . . . . . . . . . . . . . . Garrisons Compromised . | . . . . . . . . . . . . . . . . . . . . . . . Overloaded Fab Kills . | . . . . . . . . . . . . . . . . . . . . . . . Fab Network Shutdowns 1 | . . . . . . . . . 1 . . . . . . . . . . . . . Hacking | -11 -10 -10 -10 -9 -8 -8 -8 -8 -7 -7 -6 -6 -6 -6 -5 -5 -5 -5 -4 -4 -4 -4 --------- Run | Scr Mat Min Exi Min Mat Gar Mat Gar Fac Gar Fac Gar Fac Gar Fac Gar Fac Gar Fac Gar Fac Ext Machines Accessed 57 | . 2 . 1 1 8 . 11 . 11 . 1 . 2 . 6 . 3 . 4 . 1 6 Terminals 36 | . 2 . . . 5 . 9 . 5 . . . 1 . 3 . 2 . 2 . 1 6 Fabricators 4 | . . . . . . . . . 4 . . . . . . . . . . . . . Repair Stations 1 | . . . . . . . . . . . . . . . . . . . 1 . . . Recycling Units 2 | . . . . . . . . . 1 . . . . . 1 . . . . . . . Scanalyzers 4 | . . . . . 2 . 1 . . . . . . . 1 . . . . . . . Garrison Access 8 | . . . . . 1 . 1 . 1 . 1 . 1 . 1 . 1 . 1 . . . Total Hacks 213 | . 6 . 1 1 38 . 48 . 44 . 1 . 3 . 21 . 7 . 15 . 3 25 Successful 125 | . 5 . 1 1 27 . 30 . 25 . 1 . 2 . 9 . 3 . 7 . 1 13 Failed 88 | . 1 . . . 11 . 18 . 19 . . . 1 . 12 . 4 . 8 . 2 12 Catastrophic 20 | . . . . . 1 . 3 . 2 . . . 1 . 3 . 2 . 5 . 1 2 Database Lockouts . | . . . . . . . . . . . . . . . . . . . . . . . Manual 95 | . 3 . 1 . 13 . 27 . 17 . . . 1 . 9 . . . 7 . . 17 Terminals 165 | . 6 . . . 24 . 42 . 31 . . . 2 . 15 . 6 . 11 . 3 25 Fabricators 9 | . . . . . . . . . 9 . . . . . . . . . . . . . Repair Stations 3 | . . . . . . . . . . . . . . . . . . . 3 . . . Recycling Units 3 | . . . . . . . . . 2 . . . . . 1 . . . . . . . Scanalyzers 22 | . . . . . 13 . 5 . . . . . . . 4 . . . . . . . Garrison Access 9 | . . . . . 1 . 1 . 2 . 1 . 1 . 1 . 1 . 1 . . . Terminal Hacks 57 | . 3 . 1 1 9 . 13 . 12 . . . 1 . 2 . 2 . 4 . 1 8 Part Schematic 3 | . . . . . . . . . 3 . . . . . . . . . . . . . Robot Analysis 9 | . 1 . . . . . 3 . 1 . . . . . . . . . 3 . . 1 Prototype ID Bank 11 | . 1 . . . 2 . 4 . 2 . . . 1 . . . . . 1 . . . Open Door 4 | . . . . 1 . . . . . . . . . . . . . . . . . 3 Branch Access Points 2 | . . . . . 1 . . . . . . . . . . . 1 . . . . . Machine Index 1 | . . . . . 1 . . . . . . . . . . . . . . . . . Terminal Index 3 | . . . . . . . 1 . 1 . . . . . 1 . . . . . . . Garrison Index 2 | . . . . . . . 1 . . . . . . . . . 1 . . . . . Unreport Threat 4 | . . . . . . . 2 . . . . . . . . . . . . . . 2 Locate Traps 8 | . . . . . 3 . 1 . 2 . . . . . 1 . . . . . 1 . Recall Reinforcements 1 | . . . . . . . . . . . . . . . . . . . . . . 1 Hauler Manifests 1 | . . . . . . . . . 1 . . . . . . . . . . . . . Zone Layout 7 | . 1 . . . 2 . 1 . 2 . . . . . . . . . . . . 1 EX-Prototype ID Bank 1 | . . . 1 . . . . . . . . . . . . . . . . . . . Fabricator Hacks 4 | . . . . . . . . . 4 . . . . . . . . . . . . . Load Schematic 2 | . . . . . . . . . 2 . . . . . . . . . . . . . Build 2 | . . . . . . . . . 2 . . . . . . . . . . . . . Repair Station Hacks 2 | . . . . . . . . . . . . . . . . . . . 2 . . . Scan Component 1 | . . . . . . . . . . . . . . . . . . . 1 . . . Repair 1 | . . . . . . . . . . . . . . . . . . . 1 . . . Recycling Unit Hacks 2 | . . . . . . . . . 1 . . . . . 1 . . . . . . . Retrieve Components 2 | . . . . . . . . . 1 . . . . . 1 . . . . . . . Scanalyzer 21 | . . . . . 13 . 5 . . . . . . . 3 . . . . . . . Insert Component 10 | . . . . . 6 . 2 . . . . . . . 2 . . . . . . . Analyze 11 | . . . . . 7 . 3 . . . . . . . 1 . . . . . . . Garrison Access Hacks 8 | . . . . . 1 . 1 . 1 . 1 . 1 . 1 . 1 . 1 . . . Unlock Access 8 | . . . . . 1 . 1 . 1 . 1 . 1 . 1 . 1 . 1 . . . Unauthorized Hacks 31 | . 2 . . . 4 . 11 . 7 . . . . . 2 . . . . . . 5 Terminals 29 | . 2 . . . 4 . 11 . 5 . . . . . 2 . . . . . . 5 Track 4 | . . . . . 1 . 2 . 1 . . . . . . . . . . . . . Assimilate 3 | . . . . . 1 . 2 . . . . . . . . . . . . . . . Botnet 20 | . 2 . . . 2 . 6 . 3 . . . . . 2 . . . . . . 5 Operators 2 | . . . . . . . 1 . 1 . . . . . . . . . . . . . Fabricators 2 | . . . . . . . . . 2 . . . . . . . . . . . . . Report 1 | . . . . . . . . . 1 . . . . . . . . . . . . . Download 1 | . . . . . . . . . 1 . . . . . . . . . . . . . Repair Stations . | . . . . . . . . . . . . . . . . . . . . . . . Recycling Units . | . . . . . . . . . . . . . . . . . . . . . . . Scanalyzers . | . . . . . . . . . . . . . . . . . . . . . . . Garrison Access . | . . . . . . . . . . . . . . . . . . . . . . . Data Cores Recovered 2 | . . . . . 1 . 1 . . . . . . . . . . . . . . . Used 2 | . . . . . 1 . 1 . . . . . . . . . . . . . . . Hacking Detections 44 | . 2 . . . 6 . 8 . 11 . . . 2 . 4 . 2 . 2 . 1 6 Full Trace Events 10 | . . . . . 1 . 2 . 3 . . . . . 1 . 1 . . . 1 1 Feedback Events 1 | . . . . . . . . . . . . . . . . . . . . . 1 . Corruption 1 | . . . . . . . . . . . . . . . . . . . . . 1 . Feedback Blocked . | . . . . . . . . . . . . . . . . . . . . . . . Robot Schematics Acquired . | . . . . . . . . . . . . . . . . . . . . . . . Robots Built 3 | . . . . . . . . . 3 . . . . . . . . . . . . . Matter 252 | . . . . . . . . . 252 . . . . . . . . . . . . . Time 67 | . . . . . . . . . 67 . . . . . . . . . . . . . Total Robot Build Rating 12 | . . . . . . . . . 12 . . . . . . . . . . . . . Part Schematics Acquired 13 | . . . . . 6 . 2 . 4 . . . . . 1 . . . . . . . Parts Built 1 | . . . . . . . . . 1 . . . . . . . . . . . . . Matter 219 | . . . . . . . . . 219 . . . . . . . . . . . . . Time 116 | . . . . . . . . . 116 . . . . . . . . . . . . . Total Part Build Rating 3 | . . . . . . . . . 3 . . . . . . . . . . . . . Parts Repaired 1 | . . . . . . . . . . . . . . . . . . . 1 . . . Time 22 | . . . . . . . . . . . . . . . . . . . 22 . . . Parts Recycled . | . . . . . . . . . . . . . . . . . . . . . . . Recycled Matter . | . . . . . . . . . . . . . . . . . . . . . . . Retrieved Matter . | . . . . . . . . . . . . . . . . . . . . . . . Retrieved Components 4 | . . . . . . . . . 1 . . . . . 3 . . . . . . . Parts Scanalyzed 9 | . . . . . 6 . 2 . . . . . . . 1 . . . . . . . Part Schematics Acquired 9 | . . . . . 6 . 2 . . . . . . . 1 . . . . . . . Parts Damaged . | . . . . . . . . . . . . . . . . . . . . . . . Bothacking | -11 -10 -10 -10 -9 -8 -8 -8 -8 -7 -7 -6 -6 -6 -6 -5 -5 -5 -5 -4 -4 -4 -4 ------------ Run | Scr Mat Min Exi Min Mat Gar Mat Gar Fac Gar Fac Gar Fac Gar Fac Gar Fac Gar Fac Gar Fac Ext Used RIF Installer 8 | . . . . . . 1 . 1 . 1 . 1 . 1 . 1 . 1 . 1 . . Robot Detection 1 | . . . . . . . . . . 1 . . . . . . . . . . . . Patrol Navigation 1 | . . . . . . . . . . . . . . . . 1 . . . . . . Alert ID Control 1 | . . . . . . . . 1 . . . . . . . . . . . . . . Structural Interface 1 | . . . . . . . . . . . . . . . . . . 1 . . . . Program Shield 1 | . . . . . . . . . . . . . . 1 . . . . . . . . Autoassimilate 2 | . . . . . . . . . . . . 1 . . . . . . . 1 . . Robots Hacked 5 | . . . . . . . . . . . . . . . . . . 2 . 1 1 1 Non-combat . | . . . . . . . . . . . . . . . . . . . . . . . Combat 5 | . . . . . . . . . . . . . . . . . . 2 . 1 1 1 Autoassimilated 5 | . . . . . . . . . . . . . . . . . . 2 . 1 1 1 Robot Hacks Applied . | . . . . . . . . . . . . . . . . . . . . . . . Relay Couplers Released 17 | . . . . . . . . 4 . . . 5 . 1 . 1 . 2 . 4 . . Machine Destruction 17 | . . . . . . . . 4 . . . 5 . 1 . 1 . 2 . 4 . . Attached 9 | . . . . . . . . 2 . . . 2 . . 1 . . 1 . 3 . . Robots Rewired 8 | . . . . . . . . . . . . . . . . . . . . . . 8 Allies Hacked . | . . . . . . . . . . . . . . . . . . . . . . . Hacks Repelled . | . . . . . . . . . . . . . . . . . . . . . . . Allies | -11 -10 -10 -10 -9 -8 -8 -8 -8 -7 -7 -6 -6 -6 -6 -5 -5 -5 -5 -4 -4 -4 -4 -------- Run | Scr Mat Min Exi Min Mat Gar Mat Gar Fac Gar Fac Gar Fac Gar Fac Gar Fac Gar Fac Gar Fac Ext Total Allies 24 | . . . . 1 1 . 2 . 3 . . . . . . . . 2 . 1 1 13 Largest Group 14 | . . . . 1 1 . 1 . 3 3 . . . . . . . 1 . 1 1 14 Highest-Rated Group 678 | . . . . 31 10 . 10 . 60 60 . . . . . . . 12 . 49 49 678 Highest-Rated Ally 156 | . . . . 31 10 . 10 . 20 20 . . . . . . . 12 . 49 49 156 Total Orders 5 | . . . . . . . 2 . . . . . . . . . 3 . . . . . GOTO 2 | . . . . . . . 2 . . . . . . . . . . . . . . . EXPLORE 3 | . . . . . . . . . . . . . . . . . 3 . . . . . Ally Attacks 75 | . . . . 4 . . . . . 10 . . . . . . . 5 . 10 . 46 Total Damage 2138 | . . . . 43 . . . . . 174 . . . . . . . 48 . 470 . 1403 Kills 7 | . . . . . . . . . . . . . . . . . . . . 1 . 6 Allies Corrupted 1 | . . . . . . . . . . . . . . . . . . . . 1 . . Allies Melted . | . . . . . . . . . . . . . . . . . . . . . . . Intel | -11 -10 -10 -10 -9 -8 -8 -8 -8 -7 -7 -6 -6 -6 -6 -5 -5 -5 -5 -4 -4 -4 -4 ------- Run | Scr Mat Min Exi Min Mat Gar Mat Gar Fac Gar Fac Gar Fac Gar Fac Gar Fac Gar Fac Gar Fac Ext Robot Analysis Total 9 | . 1 . . . . . 3 . 1 . . . . . . . . . 3 . . 1 Derelict Logs Recovered 2 | . . 1 . 1 . . . . . . . . . . . . . . . . . . Drone Launches 5 | . . . . . . . . . . . . . . . . . 3 . . . . 2 Drone Recoveries . | . . . . . . . . . . . . . . . . . . . . . . . Exploration | -11 -10 -10 -10 -9 -8 -8 -8 -8 -7 -7 -6 -6 -6 -6 -5 -5 -5 -5 -4 -4 -4 -4 ------------- Run | Scr Mat Min Exi Min Mat Gar Mat Gar Fac Gar Fac Gar Fac Gar Fac Gar Fac Gar Fac Gar Fac Ext Turns Passed 9371 | 185 196 134 696 386 649 223 480 771 1319 524 5 605 44 379 316 589 112 690 84 584 115 285 Spaces Moved 9698 | 112 188 224 378 325 739 334 569 700 1491 524 19 561 120 360 568 460 283 374 156 710 251 252 Core 7 | 5 . . . . . . . . . . . . . . . . . . . . . 2 Treads . | . . . . . . . . . . . . . . . . . . . . . . . Legs 185 | 107 78 . . . . . . . . . . . . . . . . . . . . . Wheels . | . . . . . . . . . . . . . . . . . . . . . . . Hover 821 | . 110 224 378 109 . . . . . . . . . . . . . . . . . . Flight 8685 | . . . . 216 739 334 569 700 1491 524 19 561 120 360 568 460 283 374 156 710 251 250 Fastest Speed 24 | 50 60 60 60 37 29 29 27 27 24 24 24 24 24 24 24 25 25 25 25 28 28 28 Average Speed 35 | 116 86 60 141 92 30 29 27 27 24 24 24 24 24 24 24 25 25 25 25 28 28 28 Slowest Speed 180 | 120 120 60 180 180 34 29 29 27 27 24 24 27 24 24 25 25 25 25 28 28 28 150 Overloaded Moves . | . . . . . . . . . . . . . . . . . . . . . . . Propulsion Burnouts . | . . . . . . . . . . . . . . . . . . . . . . . Robots Hopped 35 | . . . . . 6 . 20 . 4 . . . . . . . . . . 1 . 4 Cave-ins Triggered . | . . . . . . . . . . . . . . . . . . . . . . . Exploration Rate (%) 43 | 5 30 59 86 55 44 67 60 90 39 57 1 61 5 42 18 53 24 55 6 85 11 43 Regions Visited 22 Branch Regions 4 Pre-discovered Areas . | . . . . . . . . . . . . . . . . . . . . . . . Known Exits Taken 9 | . . . . . 1 . 1 . 1 . 1 . 1 . 1 . 1 . 1 . 1 . Unknown Exits Taken 5 | 1 1 1 1 1 . . . . . . . . . . . . . . . . . . Scrap Searched 1 | . . . . 1 . . . . . . . . . . . . . . . . . . Spaces Dug 11 | . . . . . . . . . 4 . . . . 5 . . . . . 2 . . Terrain Destroyed 200 | . 19 . . . 1 . 22 147 4 . . . . 5 . . . . . 2 . . Melee 11 | . . . . . . . . . 4 . . . . 5 . . . . . 2 . . Projectile 1 | . . . . . 1 . . . . . . . . . . . . . . . . . AOE 188 | . 19 . . . . . 22 147 . . . . . . . . . . . . . . Actions | -11 -10 -10 -10 -9 -8 -8 -8 -8 -7 -7 -6 -6 -6 -6 -5 -5 -5 -5 -4 -4 -4 -4 --------- Run | Scr Mat Min Exi Min Mat Gar Mat Gar Fac Gar Fac Gar Fac Gar Fac Gar Fac Gar Fac Gar Fac Ext Total 14172 | 142 211 223 538 398 1090 439 807 1157 2289 817 18 879 125 543 707 827 310 825 198 935 293 401 Wait 2414 | 1 . . 157 32 228 28 155 187 603 75 . 139 . 60 59 255 6 256 35 89 30 19 Move 9604 | 111 187 223 377 324 727 332 532 698 1482 522 18 559 119 358 567 458 282 372 155 706 250 245 Hop 29 | . . . . . 5 . 16 . 4 . . . . . . . . . . 1 . 3 Pick Up 44 | 2 4 . 1 2 6 . 2 4 8 . . 4 . . 7 1 . 1 . 2 . . Fast Attach 66 | 6 4 . 1 5 5 . 3 2 17 1 . 6 . . 3 . 3 2 3 2 2 1 Attach 16 | . . . . 1 5 . 1 1 3 . . 1 . . 2 . . . . 2 . . Detach 7 | . . . . . 4 . 1 . 1 . . . . . . . . . . . . 1 Swap 33 | . 2 . . 2 4 . 1 . 7 . . 1 1 2 5 3 . 2 . 2 . 1 Drop 93 | 1 7 . 2 7 10 . 5 2 25 . . 4 1 1 13 1 3 1 4 2 3 1 Fire 388 | 21 7 . . 12 72 19 66 115 45 . . . . . . 11 . 20 . . . . Melee 440 | . . . . . . . . . 58 48 . 71 4 49 19 37 6 46 1 73 1 27 Ram . | . . . . . . . . . . . . . . . . . . . . . . . Kick . | . . . . . . . . . . . . . . . . . . . . . . . Crush . | . . . . . . . . . . . . . . . . . . . . . . . Escape Stasis 508 | . . . . . . 54 . 95 11 108 . 36 . 36 18 36 . 90 . 24 . . Rewire 86 | . . . . . . . . . . . . . . . . . . . . . . 86 Trap . | . . . . . . . . . . . . . . . . . . . . . . . Miscellaneous 444 | . . . . 13 24 6 25 53 25 63 . 58 . 37 14 25 10 35 . 32 7 17 Route ------- -11/Scrapyard -10/Materials -10/Mines -10/Exiles -9/Mines (discovered 2 exits: *Mat x2) -8/Materials (discovered 2 exits: *Fac / Gar) -8/Garrison (discovered 3 exits: *Mat x3) -8/Materials (discovered 2 exits: *Fac / Gar) -8/Garrison (discovered 3 exits: *Fac x3) -7/Factory (discovered 3 exits: Fac / [*Sto] / Gar) -7/Garrison (discovered 2 exits: *Fac x2) -6/Factory -6/Garrison -6/Factory -6/Garrison -5/Factory -5/Garrison (discovered 2 exits: *Fac x2) -5/Factory (discovered 3 exits: Upp x2 / Gar) -5/Garrison (discovered 2 exits: *Fac x2) -4/Factory -4/Garrison (discovered 3 exits: *Fac x3) -4/Factory -4/Extension (discovered 1 exit: [Res]) History --------- Turn | Location | Event 3 | -11/Scrapyard | Discovered new exit (range 15) 7 | -11/Scrapyard | Upgraded with Utility slot (x2) 186 | -11/Scrapyard | Entered Materials 306 | -10/Materials | Discovered new exit (range 16) 342 | -10/Materials | Build established: Mutant 382 | -10/Materials | Entered Mines 469 | -10/Mines | Learned Materials emergency access door positions 513 | -10/Mines | Deemed a non-threat by the Exiles lab entrance 513 | -10/Mines | Discovered new exit (range 5) 516 | -10/Mines | Entered Exiles 531 | -10/Exiles | Met 8R-AWN 541 | -10/Exiles | Met EX-HEX 560 | -10/Exiles | Met EX-BIN 568 | -10/Exiles | Aligned with FarCom system 568 | -10/Exiles | Given EX-Vault access code 584 | -10/Exiles | Opened EX-Vault 589 | -10/Exiles | Found Gui. Plasma Cannon 639 | -10/Exiles | Warned to stay clear of 0b10 Research branches 693 | -10/Exiles | Met EX-DEC 778 | -10/Exiles | Visited The Gauntlet 1188 | -10/Exiles | Discovered new exit (range 12) 1212 | -10/Exiles | Left Exiles lab with Gui. Plasma Cannon 1212 | -10/Exiles | Entered Mines 1214 | -9/Mines | Reached level 2 1216 | -9/Mines | Upgraded with Propulsion slot (x1) 1217 | -9/Mines | Upgraded with Utility slot (x1) 1265 | -9/Mines | Learned Materials security intel 1278 | -9/Mines | Discovered new exit (range 11) 1285 | -9/Mines | Met a Derelict bent on vengeance 1354 | -9/Mines | Received a Mining Laser from a helpful Derelict 1514 | -9/Mines | Met a Derelict shopkeep closing up shop 1560 | -9/Mines | Discovered new exit (range 11) 1598 | -9/Mines | Entered Materials 1600 | -8/Materials | Reached level 3 1600 | -8/Materials | Upgraded with Propulsion slot (x1) 1627 | -8/Materials | Reached level 4 1629 | -8/Materials | Upgraded with Propulsion slot (x1) 2115 | -8/Materials | Reached level 5 2132 | -8/Materials | Upgraded with Utility slot (x1) 2155 | -8/Materials | Build established: Scout 2247 | -8/Materials | Discovered new exit (range 17) 2247 | -8/Materials | Identified exit to Garrison 2247 | -8/Materials | Entered Garrison 2262 | -8/Garrison | Triggered checkpoint 2279 | -8/Garrison | Discovered new exit (range 14) 2361 | -8/Garrison | Discovered new exit (range 13) 2461 | -8/Garrison | Discovered new exit (range 16) 2468 | -8/Garrison | Installed Relay Interface Framework 2470 | -8/Garrison | Entered Materials 2605 | -8/Materials | Reached level 6 2845 | -8/Materials | Discovered new exit (range 6) 2887 | -8/Materials | Reached level 7 2917 | -8/Materials | Upgraded with Utility slot (x1) 2950 | -8/Materials | Identified exit to Garrison 2950 | -8/Materials | Entered Garrison 3084 | -8/Garrison | Triggered checkpoint 3096 | -8/Garrison | Triggered checkpoint 3134 | -8/Garrison | Discovered new exit (range 11) 3236 | -8/Garrison | Reached level 8 3268 | -8/Garrison | Phase Generator disabled 3311 | -8/Garrison | Discovered new exit (range 13) 3482 | -8/Garrison | Triggered checkpoint 3558 | -8/Garrison | Triggered checkpoint 3591 | -8/Garrison | Discovered new exit (range 9) 3595 | -8/Garrison | Expanded RIF knowledge: Alert ID Control 3595 | -8/Garrison | Reached level 9 3595 | -8/Garrison | Upgraded with Power slot (x1) 3595 | -8/Garrison | Upgraded with Utility slot (x1) 3595 | -8/Garrison | Upgraded with Weapon slot (x1) 3603 | -8/Garrison | Garrison Relay disabled 3630 | -8/Garrison | Triggered checkpoint 3692 | -8/Garrison | Garrison Relay disabled 3721 | -8/Garrison | Entered Factory 3723 | -7/Factory | Reached level 10 3727 | -7/Factory | Upgraded with Propulsion slot (x1) 3896 | -7/Factory | Fabricated Imp. VTOL Module (x1) 4072 | -7/Factory | Reached level 11 4089 | -7/Factory | Core integrity fell below 50% 4215 | -7/Factory | Discovered new exit (range 3) 4251 | -7/Factory | Discovered new exit (range 20) 4293 | -7/Factory | Core integrity fell below 20% 4652 | -7/Factory | Reached level 12 4921 | -7/Factory | First assault squad dispatched 4937 | -7/Factory | Upgraded with Weapon slot (x2) 4941 | -7/Factory | Local fabrication network quarantined 4980 | -7/Factory | Fabricated B-48 Gladiator (x3) 5029 | -7/Factory | Identified exit to Garrison 5040 | -7/Factory | Entered Garrison 5040 | -7/Garrison | Accompanied by 3 allies 5042 | -7/Garrison | Reached level 13 5050 | -7/Garrison | Triggered checkpoint 5182 | -7/Garrison | Triggered checkpoint 5218 | -7/Garrison | Reached level 14 5265 | -7/Garrison | Destroyed 8 combat bots 5308 | -7/Garrison | Triggered checkpoint 5380 | -7/Garrison | Triggered checkpoint 5440 | -7/Garrison | Triggered checkpoint 5443 | -7/Garrison | Discovered new exit (range 11) 5506 | -7/Garrison | Triggered checkpoint 5557 | -7/Garrison | Discovered new exit (range 18) 5563 | -7/Garrison | Expanded RIF knowledge: Robot Detection 5564 | -7/Garrison | Entered Factory 5566 | -6/Factory | Reached level 15 5567 | -6/Factory | Identified exit to Garrison 5567 | -6/Factory | Upgraded with Utility slot (x1) 5569 | -6/Factory | Entered Garrison 5571 | -6/Garrison | Reached level 16 5571 | -6/Garrison | Expanded RIF knowledge: Autoassimilate 5574 | -6/Garrison | Upgraded with Weapon slot (x1) 5583 | -6/Garrison | Garrison Relay disabled 5602 | -6/Garrison | Triggered checkpoint 5736 | -6/Garrison | Reached level 17 5904 | -6/Garrison | Triggered checkpoint 5932 | -6/Garrison | Triggered checkpoint 5943 | -6/Garrison | Core integrity fell below 50% 6009 | -6/Garrison | Discovered new exit (range 14) 6045 | -6/Garrison | Garrison Relay disabled 6078 | -6/Garrison | Reached level 18 6099 | -6/Garrison | Destroyed 7 combat bots 6106 | -6/Garrison | Triggered checkpoint 6128 | -6/Garrison | Garrison Relay disabled 6144 | -6/Garrison | Triggered checkpoint 6174 | -6/Garrison | Entered Factory 6218 | -6/Factory | Identified exit to Garrison 6218 | -6/Factory | Entered Garrison 6220 | -6/Garrison | Expanded RIF knowledge: Program Shield 6294 | -6/Garrison | Triggered checkpoint 6400 | -6/Garrison | Garrison Relay disabled 6420 | -6/Garrison | Triggered checkpoint 6427 | -6/Garrison | Triggered checkpoint 6488 | -6/Garrison | Discovered new exit (range 17) 6531 | -6/Garrison | Reached level 19 6597 | -6/Garrison | Entered Factory 6599 | -5/Factory | Reached level 20 6599 | -5/Factory | Upgraded with Utility slot (x1) 6739 | -5/Factory | Core integrity fell below 50% 6897 | -5/Factory | First assault squad dispatched 6913 | -5/Factory | Identified exit to Garrison 6913 | -5/Factory | Entered Garrison 6954 | -5/Garrison | Triggered checkpoint 7064 | -5/Garrison | Build established: Hacker-Scout 7088 | -5/Garrison | Reached level 21 7126 | -5/Garrison | Core integrity fell below 20% 7151 | -5/Garrison | Destroyed 13 combat bots 7224 | -5/Garrison | Triggered checkpoint 7276 | -5/Garrison | Discovered new exit (range 14) 7316 | -5/Garrison | Discovered new exit (range 12) 7321 | -5/Garrison | Expanded RIF knowledge: Patrol Navigation 7332 | -5/Garrison | Triggered checkpoint 7344 | -5/Garrison | Garrison Relay disabled 7502 | -5/Garrison | Entered Factory 7544 | -5/Factory | Found Prototype Processor 7544 | -5/Factory | Identified Exp. Signal Interpreter 7551 | -5/Factory | Identified exit to Upper Caves 7614 | -5/Factory | Identified exit to Garrison 7614 | -5/Factory | Entered Garrison 7728 | -5/Garrison | Triggered checkpoint 7747 | -5/Garrison | Garrison Relay disabled 7747 | -5/Garrison | Reached level 22 7750 | -5/Garrison | Upgraded with Utility slot (x1) 7808 | -5/Garrison | Triggered checkpoint 7810 | -5/Garrison | Triggered checkpoint 7828 | -5/Garrison | Destroyed 7 combat bots 8084 | -5/Garrison | Discovered new exit (range 12) 8166 | -5/Garrison | Triggered checkpoint 8231 | -5/Garrison | Destroyed 9 combat bots 8300 | -5/Garrison | Discovered new exit (range 5) 8301 | -5/Garrison | Identified exit to Factory 8303 | -5/Garrison | Expanded RIF knowledge: Structural Interface 8304 | -5/Garrison | Entered Factory 8306 | -4/Factory | Reached level 23 8330 | -4/Factory | Repaired Greatsword 8388 | -4/Factory | Identified exit to Garrison 8388 | -4/Factory | Entered Garrison 8412 | -4/Garrison | Reached level 24 8449 | -4/Garrison | Upgraded with Utility slot (x1) 8478 | -4/Garrison | Triggered checkpoint 8478 | -4/Garrison | Spotted B-86 Titan 8491 | -4/Garrison | Triggered checkpoint 8499 | -4/Garrison | Core integrity fell below 50% 8512 | -4/Garrison | Triggered checkpoint 8548 | -4/Garrison | Core integrity fell below 20% 8683 | -4/Garrison | Discovered new exit (range 13) 8686 | -4/Garrison | Identified exit to Factory 8702 | -4/Garrison | Triggered checkpoint 8742 | -4/Garrison | Garrison Relay disabled 8780 | -4/Garrison | Garrison Relay disabled 8830 | -4/Garrison | Triggered checkpoint 8833 | -4/Garrison | Discovered exit to Factory (range 17) 8882 | -4/Garrison | Triggered checkpoint 8923 | -4/Garrison | Triggered checkpoint 8928 | -4/Garrison | Discovered exit to Factory (range 14) 8969 | -4/Garrison | Expanded RIF knowledge: Autoassimilate 8972 | -4/Garrison | Entered Factory 8976 | -4/Factory | Found Prototype Processor 8976 | -4/Factory | Identified Exp. Melee Analysis Suite 9041 | -4/Factory | Discovered new exit (range 12) 9044 | -4/Factory | Identified exit to Extension 9087 | -4/Factory | Entered Extension 9087 | -4/Extension | Accompanied by 1 ally 9089 | -4/Extension | Reached level 25 9109 | -4/Extension | Rescued a captive Derelict 9110 | -4/Extension | Rescued a captive Derelict 9137 | -4/Extension | Rescued A7 9217 | -4/Extension | Rescued a captive Derelict 9318 | -4/Extension | Spotted B-86 Titan 9320 | -4/Extension | Discovered new exit (range 19) 9325 | -4/Extension | Spotted B-86 Titan 9354 | -4/Extension | Allies destroyed B-86 Titan 9372 | -4/Extension | Destroyed by B-86 Titan with Hardcell Cannon Last Messages --------------- 09365_ Lgt. Antimatter Reactor severed. 09365_ R-10 Processor collects Flexi-carbon Leg. 09366_ Knocked back. 09366_ Penetrated by Slug. 09366_ Slug penetrates Reinforced Barrier. 09366_ HV Slug penetrates B-86 Titan. 09366_ B-86 Titan suffers critical hit. 09366_ HV Slug penetrates B-86 Titan. 09368_ G-67 Veteran destroyed. 09368_ Slug penetrates G-67 Veteran. 09368_ G-67 Veteran destroyed. 09368_ R-10 Processor collects Electrolaser. 09369_ Knocked back. 09369_ Penetrated by Slug. 09369_ Slug penetrates Reinforced Barrier. 09369_ HV Slug penetrates B-86 Titan. 09369_ B-86 Titan suffers critical hit. 09369_ HV Slug penetrates B-86 Titan. 09371_ R-10 Processor collects Neutrino Core. 09372_ Greatsword destroyed. Map ----- +----------------------------------------------------+ | ######### #####!########## ?#?#????????????????? | | ###?##### #####%########## ?#?#????????????????? | | ######### #####!########## ??#####??????????????? | | ######### ##### ####?##### ?#??#??????????????? | | ######### ##### ####?####? ##?##?#???????????????? | | ######### #######?## ?? "?????????????????? | | ?######## ########?#???? "?"???????????????? | | ######### ########## ? ? " ? ??????????????? | | #?#?##### #####?#### # ? ? ??????????????? | | ####??######### ########## ?? ? Y?????????????? | | #?#?#########?# ########## ?#"T"?#???????????????? | | ?######?##?#### #?###?#### ##"""##??#????????????? | | ?#?#####?###### #?######## ######?#??????????????? | | ?#####??######"R### ## ### ######?##???#?????????? | | #?#?#?#######"" " "" ""####?#????#?????????? | | ?##???####### "* " " ####?###???#?#??????? | | ??#?######### %/%% ###?#???????????????? | | ############# % Y u ! ####?##?#?#?????????? | | ############# =%%! % #############???????? | | !=!h ????????? | | R% ????????? | | RR %= R% ?? ????? | | !k! blb ??? ??????? | | k %kk ABB ? ? ???????? | | ############# !! BB[ ;#?###?##?#?#???????? | | ???######?##; % p*=@ ######?###??????????? | | ??#####?##### [ #####?####??????????? | | ?###?####??#; ##??#?###??#??#?????? | | ?###?#?###### ##?#?####??#????????? | | #?###########;#;## #"""##;####?###?####??" ??????? | | #??##?#????## ######